Cogmind - Beta 16 --- EXPLORER MODE // 2026.01.01 @ 15:51:27 Player: K.K.Y. Result: Destroyed by RX-Q9H(R) with Subdweller Machine Gun Performance ------------- Evolutions (0) 0 Regions Visited (3) 600 Robots Destroyed (40) 200 Value Destroyed (770) 770 Prototype IDs (0) 0 Alien Tech Used (0) 0 Bonus (-18) -18 TOTAL SCORE: 1552 Bonus ------- Friendly Fire -18 Cogmind --------- Core Integrity 0/250 Matter 270/300 Energy 160/170 System Corruption 0% Temperature Cool (0) Movement Hovering (77) Location -10/Subcaves Parts ------- > --- POWER (1) -------- Makeshift Power Source > --- PROPULSION (2) --- Combat Airjet Combat Airjet > --- UTILITY (3) ------ Improved Heat Sink Medium Storage Unit Structural Scanner > --- WEAPON (2) ------- Beam Rifle Mining Laser > --- INVENTORY (10) --- Light Treads Spiked Treads Huge Storage Unit Humpback Machine Analyzer Improved Terrain Scanner Core Shielding Core Shielding Improved Light Armor Plating Peak State ------------ > --- POWER ------------ Makeshift Power Source > --- PROPULSION ------- Combat Airjet Combat Airjet > --- UTILITY ---------- Improved Heat Sink Medium Storage Unit Structural Scanner > --- WEAPON ----------- Beam Rifle Mining Laser > --- INVENTORY -------- Light Treads Huge Storage Unit Humpback Machine Analyzer Improved Terrain Scanner Core Shielding Core Shielding Improved Light Armor Plating [Rating: 23] Favorites ----------- Power Light Nuclear Core Engine Ion Engine Power Core Light Nuclear Core Propulsion Light Treads Treads Light Treads Hover Unit Combat Airjet Utility Medium Storage Unit Device Improved Heat Sink Storage Medium Storage Unit Protection Core Shielding Weapon Beam Cannon Energy Gun Beam Rifle Energy Cannon Beam Cannon Ballistic Gun Assault Rifle Launcher Mini Grenade Launcher Special Weapon Mining Laser Build | -11 -10 -10 -10 ------- Run | Yrd Mat Min Sub Slots Evolved 1 | . 1 . . Power . | . . . . Propulsion . | . . . . Utility 1 | . 1 . . Weapon . | . . . . Parts Attached 21 | 5 6 4 6 Power 5 | 1 1 2 1 Engine 3 | 1 . 1 1 Core 2 | . 1 1 . Reactor . | . . . . Propulsion 5 | 2 . 1 2 Treads 3 | 2 . 1 . Leg . | . . . . Wheel . | . . . . Hover 2 | . . . 2 Flight . | . . . . Utility 4 | 1 2 . 1 Device 2 | . 1 . 1 Storage 1 | 1 . . . Processor . | . . . . Hackware . | . . . . Protection 1 | . 1 . . Artifact . | . . . . Weapon 7 | 1 3 1 2 Energy Gun 1 | . . . 1 Energy Cannon 2 | . 2 . . Ballistic Gun 2 | 1 1 . . Ballistic Cannon . | . . . . Launcher 1 | . . 1 . Special Weapon 1 | . . . 1 Impact Weapon . | . . . . Slashing Weapon . | . . . . Piercing Weapon . | . . . . Special Melee Weapon . | . . . . Unidentified Prototypes . | . . . . Parts Lost 6 | . . 1 5 Power 2 | . . 1 1 Propulsion 1 | . . . 1 Utility . | . . . . Weapon 3 | . . . 3 Highest Loss Streak 4 | . . 1 4 To Critical Strikes . | . . . . Average Backups 7 | . 5 9 8 Power . | . . . . Propulsion 1 | . . 1 1 Utility 4 | . 3 5 6 Weapon 1 | . 1 1 1 Tool/Special . | . . . . Unused Backups 9 | . 1 . 8 Power . | . . . . Propulsion 2 | . . . 2 Utility 6 | . . . 6 Weapon 1 | . 1 . . Tool/Special . | . . . . Average Slot Usage (%) 94 | . 91 99 92 Engine 3 | . 3 3 2 Core 7 | . 8 8 4 Treads 20 | . 25 25 3 Hover 4 | . . . 21 Device 11 | . 8 12 16 Storage 12 | . 12 12 12 Protection 9 | . 8 12 7 Energy Gun 1 | . . . 7 Energy Cannon 14 | . 18 13 4 Ballistic Gun 2 | . 5 . . Launcher 4 | . . 10 4 Special Weapon 1 | . . . 5 Peak Build Rating 23 | 5 13 15 23 Average Rating 13 | 4 10 14 20 On Entrance 8 | . 5 13 15 Avg Prop Armor Cover (%) . | . . . . Naked Turns . | . . . . Heaviest Build 23 | 17 23 23 21 Greatest Support 40 | 40 40 40 40 Greatest Overweight (x) 1 | . . . 1 Average Overweight (x) . | . . . . Largest Inventory Capacity 10 | 10 10 10 10 Average Capacity 9 | 9 10 10 10 Most Carried 10 | 5 8 10 10 Average Carried 7 | . 5 9 9 Final Capacity 10 | 10 10 10 10 Final Carried 10 | 2 7 10 10 Class Distribution -------------------- 91% | Hacker-Mutant 8% | Scavenger-Mutant Dominant Class ---------------- Hacker-Mutant | -10/Materials Hacker-Mutant | -10/Mines Scavenger-Mutant | -10/Subcaves Resources | -11 -10 -10 -10 ----------- Run | Yrd Mat Min Sub Matter Collected 660 | 334 151 80 95 Remotely . | . . . . Salvage Created 1295 | 269 496 241 289 Parts 76 | 25 23 6 22 Haulers Intercepted 2 | . 2 . . Recyclers Shooed 1 | . 1 . . Parts Field Recycled . | . . . . Retrieved Matter . | . . . . Parts Self-Destructed . | . . . . Prevented . | . . . . Parts Restored . | . . . . Kills | -11 -10 -10 -10 ------- Run | Yrd Mat Min Sub Combat Hostiles Destroyed 36 | . 7 19 10 Guns 7 | . 5 . 2 Cannons 20 | . 2 11 7 AOE 7 | . . 7 . Classes Destroyed 14 | 2 7 2 3 Worker 1 | . 1 . . Builder 1 | . 1 . . Tunneler 9 | 9 . . . Hauler 2 | . 2 . . Recycler 2 | 1 1 . . Mechanic 1 | . 1 . . Turret 2 | . . . 2 Watcher 3 | . 3 . . Swarmer 7 | . 2 . 5 Grunt 5 | . 5 . . Sentry 1 | . . . 1 Demolisher 2 | . . 2 . Subdweller 4 | . . . 4 Assembled 17 | . . 17 . Best Kill Streak 8 | 4 5 8 4 Combat Bots Only 8 | . 4 8 4 Max Kills in Single Turn 4 | 1 1 4 1 Gunslinging . | . . . . Exploded 4 | . . 4 . Melee . | . . . . Uniques/NPCs Destroyed . | . . . . Combat | -11 -10 -10 -10 -------- Run | Yrd Mat Min Sub Hostile Shots Fired 191 | . 49 50 92 Missed 54 | . 11 12 31 Hits 137 | . 38 38 61 Melee 6 | . . 6 . Projectile 131 | . 38 32 61 AOE 15 | . . 13 2 Critical Strikes 1 | . 1 . . Damage Taken 1280 | . 223 576 481 Core 251 | . 35 96 120 Absorbed by Shields . | . . . . Redirected to Shielding 32 | . . 16 16 Ignored by Resistances 777 | . 155 340 282 Core Remaining (%) 100 | 100 . . . Volleys Fired 167 | 28 35 49 55 Largest 2 | 1 2 2 2 Hottest 156 | 20 120 120 156 Shots Fired 226 | 28 69 57 72 Gun 94 | 28 45 . 21 Cannon 110 | . 24 54 32 Launcher 11 | . . 3 8 Special 11 | . . . 11 Kinetic 73 | 28 45 . . Thermal 142 | . 24 54 64 Explosive 11 | . . 3 8 Electromagnetic . | . . . . Robot Hit Streak 22 | 8 22 15 17 Robot Miss Streak 2 | 2 2 1 2 Penetration Max . | . . . . Secondary Targets 2 | . 2 . . Max Gunslinging Chain 1 | . 1 . . Shots Hit Robots 165 | 23 57 44 41 Core Hits 87 | 11 25 31 20 Critical Kills 1 | . . 1 . Critical Parts Destroyed . | . . . . Critical Strikes 2 | . . 1 1 Burn 1 | . . . 1 Meltdown 1 | . . 1 . Melee Attacks . | . . . . Impact . | . . . . Slashing . | . . . . Piercing . | . . . . Sneak Attacks . | . . . . Combat Hostiles . | . . . . Follow-up Attacks . | . . . . Damage Inflicted 2913 | 293 710 1090 820 Guns 853 | 293 446 . 114 Cannons 1542 | . 263 788 491 Explosions 517 | . . 302 215 Melee . | . . . . Ramming 1 | . 1 . . Kinetic 739 | 293 446 . . Thermal 1656 | . 263 788 605 Explosive 517 | . . 302 215 Electromagnetic . | . . . . Impact . | . . . . Slashing . | . . . . Piercing . | . . . . Highest Corruption . | . . . . Average Corruption . | . . . . Corruption Purged . | . . . . Corruption Blocked . | . . . . Overload Shots . | . . . . Overflow Damage 63 | . . 53 10 Projectiles 37 | . . 37 . Explosions 26 | . . 16 10 Melee . | . . . . Knockbacks . | . . . . Impact . | . . . . Kinetic . | . . . . Secondary . | . . . . Self-Inflicted Damage 26 | . . . 26 Shots 1 | . . . 1 Rammed 1 | . 1 . . Targets Rammed 1 | . 1 . . Kicked . | . . . . Crushed . | . . . . Highest Temperature 102 | . 102 47 . Average Temperature 23 | . 24 20 . Received Heat Transfer 296 | . 120 20 156 Siege Activations . | . . . . Martial Activations . | . . . . Shielding Activations . | . . . . Robots Disrupted . | . . . . Combat Hostiles . | . . . . Robots Corrupted . | . . . . Combat Hostiles . | . . . . Parts Fried . | . . . . Impact Corruptions . | . . . . Robots Melted 2 | . . 1 1 Combat Hostiles 2 | . . 1 1 Parts Melted 1 | . . 1 . Heat Transferred 3626 | . 555 1665 1406 Parts Sabotaged . | . . . . Parts Stolen . | . . . . Parts Stripped . | . . . . Power Chain Reactions . | . . . . Alert | -11 -10 -10 -10 ------- Run | Yrd Mat Min Sub Maximum Alert Level . | . . . . Low Security (%) 100 | 100 100 100 . Level 1 . | . . . . Level 2 . | . . . . Level 3 . | . . . . Level 4 . | . . . . Level 5 . | . . . . High Security . | . . . . Max Security . | . . . . Peak Influence 107 | 10 107 50 . Initial . | . . . . Average 3 | 1 5 1 . Influence Increases 546 | 50 217 74 205 Destroy 0b10 Robot/C 340 | . 140 40 160 Destroy 0b10 Robot/NC 95 | 50 45 . . Destroy Leader 40 | . 30 10 . Destroy Structure 26 | . 2 24 . Lose Combat Pursuer 45 | . . . 45 Influence Decreases 546 | 50 217 74 205 Time Decay 526 | 50 217 74 185 Lost Part 20 | . . . 20 Squads Dispatched . | . . . . Investigation . | . . . . Extermination . | . . . . Reinforcement . | . . . . Assault . | . . . . Garrison . | . . . . Intercept . | . . . . Searches Triggered . | . . . . Construction Impeded . | . . . . Haulers Reinforced . | . . . . Active Scanning Responses . | . . . . Cargo Convoy Interrupts . | . . . . Stealth | -11 -10 -10 -10 --------- Run | Yrd Mat Min Sub Distress Signals 2 | . 2 . . Communications Jammed . | . . . . Distress Signals . | . . . . Times Spotted 51 | . 19 19 13 Peak Tracking Total 6 | . 5 6 4 Tactical Retreats 1 | . . . 1 Traps | -11 -10 -10 -10 ------- Run | Yrd Mat Min Sub Traps Triggered 1 | . . . 1 Indirectly . | . . . . Trap Hack Attempts . | . . . . Triggered . | . . . . Disarmed . | . . . . Reprogrammed . | . . . . Reused . | . . . . Traps Extracted . | . . . . Installed . | . . . . Triggered . | . . . . Machines | -11 -10 -10 -10 ---------- Run | Yrd Mat Min Sub Machines Disabled 4 | . . . 4 Max in Single Turn 3 | . . . 3 Machines Repaired . | . . . . Machines Dismantled . | . . . . Machines Sabotaged . | . . . . Overloaded Fab Kills . | . . . . Hacking | -11 -10 -10 -10 --------- Run | Yrd Mat Min Sub Machines Accessed . | . . . . Terminals . | . . . . Fabricators . | . . . . Repair Stations . | . . . . Recycling Units . | . . . . Scanalyzers . | . . . . Garrison Access . | . . . . Total Hacks . | . . . . Successful . | . . . . Failed . | . . . . Catastrophic . | . . . . Database Lockouts . | . . . . Manual . | . . . . Terminals . | . . . . Fabricators . | . . . . Repair Stations . | . . . . Recycling Units . | . . . . Scanalyzers . | . . . . Garrison Access . | . . . . Terminal Hacks . | . . . . Fabricator Hacks . | . . . . Repair Station Hacks . | . . . . Recycling Unit Hacks . | . . . . Scanalyzer . | . . . . Garrison Access Hacks . | . . . . Unauthorized Hacks . | . . . . Terminals . | . . . . Fabricators . | . . . . Repair Stations . | . . . . Recycling Units . | . . . . Scanalyzers . | . . . . Garrison Access . | . . . . Data Cores Recovered . | . . . . Used . | . . . . Hacking Detections . | . . . . Full Trace Events . | . . . . Feedback Events . | . . . . Feedback Blocked . | . . . . Robot Schematics Acquired . | . . . . Robots Built . | . . . . Authchips . | . . . . Time . | . . . . Total Robot Build Rating . | . . . . Part Schematics Acquired . | . . . . Parts Built . | . . . . Authchips . | . . . . Time . | . . . . Total Part Build Rating . | . . . . Part Studies Acquired . | . . . . Parts Repaired . | . . . . Time . | . . . . Parts Recycled . | . . . . Recycled Matter . | . . . . Retrieved Matter . | . . . . Retrieved Components . | . . . . Parts Scanalyzed . | . . . . Part Schematics Acquired . | . . . . Parts Damaged . | . . . . Bothacking | -11 -10 -10 -10 ------------ Run | Yrd Mat Min Sub Used RIF Installer . | . . . . Robots Hacked . | . . . . Non-combat . | . . . . Combat . | . . . . Robot Hacks Applied . | . . . . Relay Couplers Released . | . . . . Fabnet Peak Effective % . | . . . . Robots Rewired . | . . . . Allies Hacked . | . . . . Hacks Repelled . | . . . . Allies | -11 -10 -10 -10 -------- Run | Yrd Mat Min Sub Total Allies . | . . . . Largest Group . | . . . . Highest-Rated Group . | . . . . Highest-Rated Ally . | . . . . Total Orders . | . . . . Ally Attacks . | . . . . Total Damage . | . . . . Kills . | . . . . Allies Corrupted . | . . . . Allies Melted . | . . . . Intel | -11 -10 -10 -10 ------- Run | Yrd Mat Min Sub Active Infowar (turns) 241 | . . . 241 Structural 241 | . . . 241 Robot Analysis Total . | . . . . Derelict Logs Recovered 2 | . . . 2 Drone Launches . | . . . . Drone Recoveries . | . . . . Exploration | -11 -10 -10 -10 ------------- Run | Yrd Mat Min Sub Turns Passed 3926 | 269 1670 1307 680 Spaces Moved 2368 | 131 952 737 548 Core 16 | 16 . . . Treads 1828 | 115 952 737 24 Legs . | . . . . Wheels . | . . . . Hover 524 | . . . 524 Flight . | . . . . Fastest Speed 50 | 50 160 160 77 Average Speed 141 | 146 160 160 81 Slowest Speed 240 | 160 160 160 240 Overloaded Moves . | . . . . Propulsion Burnouts . | . . . . Robots Hopped . | . . . . Potential Cave-ins . | . . . . Cave-ins Triggered . | . . . . Exploration Rate (%) 58 | 5 99 99 32 Regions Visited 3 Branch Regions 2 Pre-discovered Areas 2 | . . . 2 Known Exits Taken 3 | 1 1 1 . Unknown Exits Taken . | . . . . Scrap Searched 1 | . . 1 . Spaces Dug . | . . . . Terrain Destroyed 60 | . . 39 21 Melee . | . . . . Projectile . | . . . . AOE 60 | . . 39 21 Terrain Rammed . | . . . . Walls Destroyed . | . . . . Machines Disabled . | . . . . Actions | -11 -10 -10 -10 --------- Run | Yrd Mat Min Sub Total 2716 | 180 1036 810 690 Wait 117 | 10 25 10 72 Move 2365 | 130 951 736 548 Hop . | . . . . Pick Up 30 | 7 12 6 5 Fast Attach . | . . . . Attach 18 | 5 5 1 7 Detach 4 | . 2 . 2 Swap 5 | . 1 4 . Drop 9 | . 4 4 1 Fire 167 | 28 35 49 55 Melee . | . . . . Ram . | . . . . Kick . | . . . . Crush 1 | . 1 . . Escape Stasis . | . . . . Rewire . | . . . . Trap . | . . . . Miscellaneous . | . . . . Route ------- -11/Scrapyard -10/Materials (discovered 6 exits: *Mat x3 / *Min x2 / *Sub) -10/Mines (discovered 4 exits: *Mat x2 / *Exi / *Sub) -10/Subcaves (discovered 1 exit: *Rec) History --------- Turn | Location | Event 6 | -11/Scrapyard | Identified exit to Materials 6 | -11/Scrapyard | Discovered exit to Materials (range 16) 270 | -11/Scrapyard | Entered Materials 270 | -10/Materials | Evolved 1 slot: Utility x1 309 | -10/Materials | Build established: Hacker-Mutant 673 | -10/Materials | Identified exit to Materials 673 | -10/Materials | Discovered exit to Materials (range 12) 865 | -10/Materials | Identified exit to Mines 865 | -10/Materials | Discovered exit to Mines (range 16) 903 | -10/Materials | Identified exit to Subcaves 903 | -10/Materials | Discovered exit to Subcaves (range 7) 1068 | -10/Materials | Discovered exit to Materials (range 9) 1383 | -10/Materials | Discovered exit to Materials (range 15) 1412 | -10/Materials | Discovered exit to Mines (range 14) 1940 | -10/Materials | Entered Mines 1944 | -10/Mines | Discovered exit to Materials (range 10) 1998 | -10/Mines | Discovered exit to Materials (range 9) 2037 | -10/Mines | Assembled infested the area 2147 | -10/Mines | Destroyed 8 combat bots 2228 | -10/Mines | Discovered exit to Subcaves (range 6) 2353 | -10/Mines | Deemed a non-threat by the Exiles lab entrance 2353 | -10/Mines | Identified exit to Exiles 2353 | -10/Mines | Discovered exit to Exiles (range 5) 2824 | -10/Mines | Core integrity fell below 50% 3247 | -10/Mines | Entered Subcaves 3252 | -10/Subcaves | Learned location of Zion (-7) 3252 | -10/Subcaves | Met a Zionite searching for "candidates" 3303 | -10/Subcaves | Identified exit to Recycling 3303 | -10/Subcaves | Discovered exit to Recycling (range 11) 3366 | -10/Subcaves | Learned Materials stockpile data 3500 | -10/Subcaves | Core integrity fell below 20% 3538 | -10/Subcaves | Lost 4 parts (1p3w) 3607 | -10/Subcaves | Shifting Twisted Machinery released Humpback 3796 | -10/Subcaves | Shifting Twisted Machinery released Sub. Laser 3797 | -10/Subcaves | Shifting Twisted Machinery released Spk. Treads 3851 | -10/Subcaves | Shifting Twisted Machinery released Mak. Light Armor Plating 3854 | -10/Subcaves | A swath of the cavern ceiling suddenly collapsed 3923 | -10/Subcaves | Disturbed a concealed Subdweller 3927 | -10/Subcaves | Destroyed by RX-Q9H(R) with Subdweller Machine Gun Last Messages --------------- Humpback falls loose from the Twisted Machinery. 03633_ Acquired Humpback. 03667_ Acquired derelict log, extracted data. World map confirmed: -7/Zion. 03737_ Subatomizers dissect the Sub. Monowheel. 03750_ Acquired Mak. Power Source. Sub. Laser falls loose from the Twisted Machinery. Spk. Treads falls loose from the Twisted Machinery. 03810_ Acquired Spk. Treads. Mak. Light Armor Plating falls loose from the Twisted Machinery. 03854_ Derelict Log crushed. 03854_ Mak. Light Armor Plating crushed. A swath of the cavern ceiling suddenly collapses. 03923_ RX-Q9H(R) angrily emerges from the Twisted Machinery. 03925_ RX-Q9H(R): "SUBSUB!" Map ----- +----------------------------------------------------+ | ?????????????????????????????????????????????????? | | ?????????????????????????????????????????????????? | | ?????????????????????????????????????????????????? | | ?????????????????????????????????????????????????? | | ?????????????????????????????????????????????????? | | ?????????????????????????????????????????????????? | | ?????????????????????????????????????????????????? | | ?????????????????????????????????????????????????? | | ?????????????????????????????????????????????????? | | ?????????????????????????????????????????????????? | | ?????????????????????????????????????????????????? | | ?????????????????????????????????????????????????? | | ?????????????????????????????????????????????????? | | ?????????????????????????????????????????????????? | | ?????????????????????????????????????????????????? | | ?????????????????????????????????????????????????? | | ??????????????????????? ?????????????????????????? | | ???????????????????????? ###????????????????????? | | ????????????????????????? #####??????????????????? | | ?????????????????????? ###??????????????????? | | ????????????????????? #### "##????"""???????????? | | ????????????????????? ##<<##"###??"""""??????????? | | ????????????????????? #<""<# ####?" """ ?###?????? | | ????????????????????? #<""<# ###""" " ##?????? | | ???????????????????## ##